[Event "Kezmarok Chess Open 2022"]
[Site "Kezmarok"]
[Date "2022.10.01"]
[Round "9.15"]
[White "Belus, Benjamin"]
[Black "Hanina, Marcel"]
[Result "1-0"]
[ECO "A30"]
[WhiteElo "1932"]
[BlackElo "1411"]
[Annotator "TA"]
[PlyCount "95"]
[EventDate "2022.09.24"]
[EventType "swiss"]
[EventCountry "SVK"]
[SourceTitle "playchess.com"]
[Source "ChessBase"]
[SourceQuality "1"]
[TimeControl "40/5400+30:1800+30"]

{[%evp 9,95,13,5,6,3,7,22,26,66,-4,0,-16,-14,-19,47,27,73,35,96,83,73,86,75,93,86,73,72,31,77,74,95,44,183,185,163,105,229,161,238,234,222,223,310,309,313,305,309,293,331,305,512,503,502,483,536,511,515,472,456,425,423,393,396,118,124,117,204,195,550,325,325,310,496,412,487,493,1069,1018,1154,1119,1475,1127,29964,29963,5716,5397,29987,29988]} 1. c4 {[%emt 0:27:27]} c5 {[%emt 0:02:19]} 2. g3 {[%emt 0:00:02]} Nf6 {[%emt 0:00:25]} 3. Bg2 {[%emt 0:00:01]} g6 {[%emt 0:00:44]} 4. Nc3 {[%emt 0:00:03]} Bg7 {[%emt 0:00:36]} 5. e3 {[%emt 0:00:02]} Nc6 {[%emt 0:00:57]} 6. d4 {[%emt 0:00:03] A34: Symmetrical English: 2 Nc3, lines with ...d5.} cxd4 {[%emt 0:00:56]} 7. exd4 {[%emt 0:00:02]} e6 {[%emt 0:00:57]} 8. d5 {[%emt 0:00:44] The position is equal.} exd5 {[%emt 0:00:18] [#]} 9. Nxd5 $146 {[%emt 0:00:49]} (9. cxd5 $14 Ne5 10. Nf3) ({Predecessor:} 9. cxd5 Nb8 10. Nf3 O-O 11. O-O d6 12. Bf4 a6 13. a4 Bg4 14. Qb3 Bxf3 15. Bxf3 {1-0 (28) Chugunov,V (1936)-Mikeev,V (1784) Uljanovsk 2014}) 9... O-O {[%emt 0:01:09]} 10. Ne2 {[%emt 0:00:04] Active counter play!} Nxd5 {[%emt 0:03:10]} 11. Bxd5 {[%emt 0:00:22]} b6 {[%emt 0:03:31]} (11... d6 $11) 12. O-O $14 {[%emt 0:00:45]} Bb7 {[%emt 0:00:57]} (12... Ba6) (12... Ba6 $11) 13. Nf4 {[%emt 0:02:01]} Na5 {[%emt 0:03:18]} (13... Qf6 $14) 14. Rb1 {[%emt 0:03:34]} Bxd5 {[%emt 0:00:49]} 15. Qxd5 {[%emt 0:00:05]} Qc7 {[%emt 0:02:37]} 16. b3 {[%emt 0:00:25]} Nc6 {[%emt 0:02:25]} 17. Ba3 {[%emt 0:01:20]} Rfe8 {[%emt 0:01:27]} 18. h4 {[%emt 0:01:06]} Ne5 {[%emt 0:02:01]} (18... Be5 $14) 19. Rbd1 $16 {[%emt 0:03:38]} Qc6 {[%emt 0:00:49]} 20. Bd6 {[%emt 0:04:00]} (20. Qg2 $16) 20... Qxd5 {[%emt 0:05:21]} (20... Nf3+ $14 21. Kg2 Nd4) 21. Nxd5 $18 {[%emt 0:00:05][%cal Bf4d5,Bd5e7,Be7c6][%mdl 32]} ({Worse is} 21. cxd5 Bh6 $11) 21... Red8 {[%emt 0:04:25]} 22. Bc7 {[%emt 0:07:36]} ({White should try} 22. h5 $18 Nc6 23. Kg2) 22... Rf8 {[%emt 0:01:59]} (22... Re8 $16) 23. Ne7+ {[%emt 0:04:12]} Kh8 {[%emt 0:00:21]} 24. Bxe5 {[%emt 0:00:16]} Bxe5 {[%emt 0:00:22]} 25. Rxd7 {[%emt 0:00:06]} h5 {[%emt 0:01:00]} 26. Rfd1 {[%emt 0:00:48]} Bf6 {[%emt 0:03:13]} 27. Nc6 {[%emt 0:01:55]} a6 {[%emt 0:00:56]} 28. a4 {[%emt 0:00:35] Prevents b5.} Kg8 {[%emt 0:00:56]} 29. Rb7 {[%emt 0:00:30]} b5 $2 {[%emt 0:02:20]} (29... a5 30. Rxb6 Rfc8) 30. cxb5 {[%emt 0:01:56]} axb5 {[%emt 0:00:16]} 31. Rxb5 {[%emt 0:00:03]} Rfc8 {[%emt 0:01:15]} 32. Rb6 {[%emt 0:02:32]} Kg7 {[%emt 0:01:21]} 33. Rd2 {[%emt 0:01:21]} Re8 {[%emt 0:04:09]} 34. Ra2 {[%emt 0:01:34]} Re6 {[%emt 0:00:20]} 35. a5 {[%emt 0:07:23]} Rc8 {[%emt 0:04:37] [#]} 36. Nb4 {[%emt 0:06:08]} (36. Na7 Rc1+ 37. Kg2 Rxb6 38. axb6) (36. Na7 $1 $18 {[%cal Ra7c8] and the rest is easy.} Rc1+ 37. Kg2) 36... Rxb6 $16 {[%emt 0:02:38]} 37. axb6 {[%emt 0:00:01][%mdl 4096] Endgame aiming for Na6. KRB-KRN} Rb8 {[%emt 0:00:43]} (37... Rc5) (37... Rc5 $16) 38. Ra6 $18 {[%emt 0:01:52] Strongly threatening Nc6.} Rb7 $2 {[%emt 0:02:49]} (38... Bd4 39. Nd5 Kf8) (38... Bd4 {is more resistant.} 39. Nd5 Kf8) 39. Kf1 {[%emt 0:01:55] Black must now prevent Nc6.} Bd4 {[%emt 0:01:19]} 40. Nd5 {[%emt 0:00:02]} Bc5 {[%emt 0:02:03]} (40... Rb8 {is a better defense.} 41. Ke2 Kf8) 41. b4 {[%emt 0:30:42]} Bd6 {[%emt 0:31:08]} 42. Ke2 {[%emt 0:03:03] [#] Threatens to win with Kd3.} Bf8 {[%emt 0:02:35]} (42... Rd7 $142 43. Kd3 Bxb4) 43. Kd3 {[%emt 0:00:23]} Bd6 {[%emt 0:02:08]} 44. Kc4 {[%emt 0:00:14]} Be5 {[%emt 0:00:42]} 45. Kb5 {[%emt 0:00:04]} Kf8 {[%emt 0:01:22]} 46. Kc6 {[%emt 0:00:20]} Rb8 {[%emt 0:00:38]} 47. b7 {[%emt 0:00:26] White threatens Ra8 and mate.} Ke8 {[%emt 0:00:38]} 48. Ra8 {[%emt 0:01:06] Weighted Error Value: White=0.38/Black=0.45} 1-0

[Event "Kezmarok Chess Open 2022"]
[Site "Kezmarok"]
[Date "2022.10.01"]
[Round "9.16"]
[White "Velychko, Sofiya"]
[Black "Hagara, Eduard"]
[Result "1-0"]
[ECO "C00"]
[WhiteElo "1371"]
[BlackElo "1734"]
[Annotator "NA RC COMBH"]
[PlyCount "37"]
[EventDate "2022.09.24"]
[EventType "swiss"]
[EventCountry "SVK"]
[SourceTitle "playchess.com"]
[Source "ChessBase"]
[SourceQuality "1"]
[TimeControl "40/5400+30:1800+30"]

1. e4 {[%emt 0:00:05]} e6 {[%emt 0:00:31]} 2. d4 {[%emt 0:00:22]} d5 {[%emt 0:00:11]} 3. Bd3 {[%emt 0:00:33]} c5 {[%emt 0:02:00]} 4. exd5 {[%emt 0:00:36]} Qxd5 {[%emt 0:00:37]} 5. Nc3 {[%emt 0:00:43]} Qxd4 {[%emt 0:03:42]} 6. Nb5 {[%emt 0:00:41]} Qe5+ {[%emt 0:00:56]} 7. Ne2 {[%emt 0:05:07]} g5 {[%emt 0:04:54]} 8. f4 {[%emt 0:02:26]} gxf4 {[%emt 0:09:18]} 9. Bxf4 {[%emt 0:00:26]} Qxb2 {[%emt 0:00:41]} 10. Nc7+ {[%emt 0:00:52]} Ke7 {[%emt 0:00:53]} 11. Nxa8 {[%emt 0:01:09]} Nc6 {[%emt 0:01:47]} 12. Nc7 {[%emt 0:03:32]} a6 {[%emt 0:01:45]} 13. O-O {[%emt 0:00:57]} Bg7 {[%emt 0:01:10]} 14. Rb1 {[%emt 0:01:30]} Bd4+ {[%emt 0:02:42]} 15. Nxd4 {[%emt 0:00:49]} Qxd4+ {[%emt 0:00:16]} 16. Kh1 {[%emt 0:00:33]} e5 {[%emt 0:00:36]} 17. Bg3 {[%emt 0:04:03]} Qd6 {[%emt 0:02:07]} 18. Qh5 {[%emt 0:00:49]} f6 {[%emt 0:03:54]} 19. Qe8# {[%emt 0:00:22]} 1-0

[Event "Kezmarok Chess Open 2022"]
[Site "Kezmarok"]
[Date "2022.10.01"]
[Round "9.17"]
[White "Horbalova, Ivana"]
[Black "Kolek, Stefan"]
[Result "0-1"]
[ECO "C02"]
[WhiteElo "1286"]
[BlackElo "1524"]
[Annotator "NA RC COMBH"]
[PlyCount "66"]
[EventDate "2022.09.24"]
[EventType "swiss"]
[EventCountry "SVK"]
[SourceTitle "playchess.com"]
[Source "ChessBase"]
[SourceQuality "1"]
[TimeControl "40/5400+30:1800+30"]

1. d4 e6 2. e4 d5 3. e5 c5 4. c3 cxd4 5. cxd4 Nc6 6. Nf3 Qb6 7. Be3 Qxb2 8. Nbd2 Bb4 9. Be2 Bxd2+ 10. Bxd2 Nxd4 11. Nxd4 Qxd4 12. O-O Qxe5 13. Re1 Qd6 14. Qa4+ Bd7 15. Qb3 Bc6 16. Bb4 Qd8 17. Rac1 Ne7 18. Bc3 O-O 19. Bb2 Nf5 20. Qh3 Qh4 21. Qg4 Qxg4 22. Bxg4 Ne7 23. Rc3 Ng6 24. Rg3 Rfe8 25. h4 Nxh4 26. Bxe6 Ng6 27. Bxf7+ Kxf7 28. Rf3+ Kg8 29. Rfe3 Rxe3 30. Rxe3 Re8 31. Rg3 Re1+ 32. Kh2 Re2 33. f4 Rxb2 0-1